bitfinex/quotes_ETHUSD_20250110
["timestamp","ask_amount","ask_price","bid_price","bid_amount"]
[1736536253766,3.04871,3280.1,3279.8,0.256]
[1736536253942,0.0304791,3280.2,3279.8,0.256]
[1736536253943,3.04879,3280.0,3279.8,0.256]
[1736536254143,3.0790991,3280.2,3279.8,0.256]
[1736536254342,3.04793,3281.0,3280.0,0.7991]
[1736536254575,0.0304791,3280.9,3280.1,0.0075]
[1736536254878,3.0304791,3280.9,3280.1,3.05617]
[1736536255083,3.04768,3281.2,3280.4,0.7991]
[1736536255255,3.04768,3281.2,3280.5,0.03047905]
[1736536255456,3.0304791,3281.1,3280.4,0.7991]
[1736536255853,3.0782391,3281.1,3280.4,0.7991]
[1736536257278,0.0075,3281.4,3280.4,3.8475]
[1736536257279,3.0,3281.2,3280.4,3.8475]
[1736536257496,3.0,3281.2,3280.7,0.59561194]
[1736536257640,3.0,3281.2,3280.4,1.18385]
[1736536257841,3.0782391,3281.1,3280.4,0.7991]
[1736536258387,0.0304791,3281.1,3280.4,0.7991]
[1736536258539,3.04761,3281.3,3280.5,0.03047868]
[1736536258742,3.04761,3281.3,3280.6,0.62552072]
[1736536259676,3.04777,3281.1,3280.6,0.62552072]
[1736536260443,0.0304791,3281.0,3280.6,0.62552072]
[1736536260661,3.0,3281.3,3280.6,0.62552072]
[1736536260865,3.0,3281.3,3280.7,0.03047939]
[1736536260866,3.0304791,3281.3,3280.7,0.03047939]
[1736536261058,3.0304791,3281.3,3280.6,0.62552072]
[1736536261303,3.0,3281.3,3280.7,0.03047789]
[1736536261479,3.0780691,3281.3,3280.7,0.03047789]
[1736536261677,0.0304791,3281.3,3280.6,0.62552072]
[1736536261878,3.0304791,3281.5,3280.8,0.801]
[1736536262079,3.0778791,3281.5,3280.8,0.801]
[1736536262388,3.0474,3281.5,3280.8,0.801]
[1736536262722,3.04739,3281.5,3280.8,0.801]
[1736536263063,0.0304791,3281.7,3280.8,0.801]
[1736536263388,3.0775291,3281.9,3281.1,0.61520524]
[1736536263586,3.0775291,3281.9,3281.2,0.82917408]
[1736536263587,3.04705,3281.9,3281.2,0.82917408]
[1736536263807,0.0304791,3282.0,3281.2,0.82917408]
[1736536263994,3.0304791,3282.0,3281.2,0.7987]
[1736536264606,2.82918737,3282.4,3281.5,3.05487]
[1736536264767,0.0304791,3282.3,3281.5,3.05487]
[1736536264963,0.0304791,3282.3,3281.4,0.7987]
[1736536265265,3.0075,3282.0,3281.4,0.7987]
[1736536265466,3.0075,3282.0,3279.6,3.29912]
[1736536265467,2.82918737,3281.5,3281.2,0.60181073]
[1736536265680,5.87635737,3281.8,3280.7,3.04805]
[1736536266008,5.87635737,3281.8,3280.9,0.7596]
[1736536266009,3.0776791,3281.7,3280.9,0.7596]
[1736536266769,3.0,3281.8,3281.0,0.03047412]
[1736536267195,3.04687,3282.1,3281.1,0.7596]
[1736536267516,0.0304791,3282.0,3281.1,0.7596]
[1736536267866,3.0774091,3282.0,3281.1,0.7596]
[1736536268094,0.0304791,3282.0,3281.1,0.7596]
[1736536269207,8.20918737,3282.4,3281.5,0.7673]
[1736536269426,5.38,3282.4,3281.6,3.07774764]
[1736536269914,5.4104791,3282.4,3281.6,3.07774764]
[1736536270427,3.0,3282.6,3281.8,0.7956]
[1736536270634,0.0304791,3282.5,3281.8,0.7956]
[1736536270909,3.05361,3282.9,3281.9,0.03046599]
[1736536270910,3.0462,3282.8,3281.9,0.03046599]
[1736536271074,3.0767691,3282.7,3281.8,3.8427]
[1736536271528,3.04638,3282.6,3281.8,0.7956]
[1736536271687,2.54492456,3282.3,3281.8,0.7956]
[1736536271876,3.04668,3282.3,3281.8,0.7956]
[1736536272376,6.0769891,3282.5,3281.8,0.7956]
[1736536272571,3.0,3282.5,3281.8,0.7956]
[1736536272771,3.0,3282.7,3281.9,3.04699]
[1736536273013,3.0304791,3282.7,3282.0,0.03046494]
[1736536273229,2.54492456,3282.5,3281.8,0.7956]
[1736536273550,0.0304791,3282.7,3281.5,0.7802]
[1736536273551,2.54492456,3282.2,3281.5,0.7802]
[1736536273831,3.04709,3281.9,3281.5,0.7802]
[1736536274622,0.0304791,3282.1,3281.5,0.7802]
[1736536274925,3.04692,3282.0,3281.5,0.7802]
[1736536275128,3.0,3282.4,3281.6,3.04728]
[1736536275290,5.59113456,3282.8,3281.9,0.7972]
[1736536275486,0.0304791,3282.7,3281.9,0.7972]
[1736536275698,2.54492456,3282.5,3281.9,0.7972]
[1736536275904,3.04674,3282.2,3281.9,0.7972]
[1736536276153,3.0770691,3282.4,3281.9,0.7972]
[1736536276657,3.04673,3282.2,3281.9,0.7972]
[1736536276855,3.04673,3282.2,3281.5,0.8047]
[1736536277201,3.0304791,3282.4,3281.5,0.8047]
[1736536277600,2.54492456,3281.9,3281.2,0.7528]
[1736536277836,3.05441,3282.1,3281.2,0.7528]
[1736536277837,0.0304791,3281.8,3281.2,0.7528]
[1736536278039,0.0304791,3282.0,3281.2,0.7528]
[1736536278244,0.0075,3281.9,3281.2,0.7528]
[1736536278543,3.04712,3281.8,3281.2,0.7528]
[1736536278744,0.0304791,3282.0,3281.2,0.7528]
[1736536279036,3.04713,3281.8,3281.2,0.7528]
[1736536279493,0.0304791,3281.7,3281.2,0.7528]
[1736536279650,3.0776791,3281.7,3281.2,0.7528]
[1736536279942,0.0304791,3281.7,3281.2,0.7528]
[1736536280243,3.04687,3282.1,3281.3,0.03047334]
[1736536280538,0.0304791,3282.0,3281.2,3.80046]
[1736536280939,0.0304791,3282.0,3281.3,0.03047109]
[1736536281114,0.0379791,3282.3,3281.3,0.47512171]
[1736536281319,3.04673,3282.2,3281.2,0.7528]
[1736536281503,3.0304791,3282.1,3281.2,0.7528]
[1736536281704,2.54492456,3281.9,3281.3,0.61490399]
[1736536281927,3.0473,3281.6,3281.3,0.61490399]
[1736536282243,3.04795,3280.9,3280.1,0.7709]
[1736536282405,0.0304791,3280.8,3280.1,0.7709]
[1736536282746,3.04859,3280.2,3280.0,0.60929066]
[1736536283044,2.54492456,3280.3,3280.0,0.60929066]
[1736536283256,0.0304791,3280.2,3280.0,0.60929066]
[1736536283455,3.04888,3279.9,3279.1,1.0229]
[1736536283625,0.0304791,3279.8,3279.1,0.7709]
[1736536283830,3.04911,3279.7,3279.2,0.61191429]
[1736536284025,0.0304791,3279.6,3279.1,0.7709]
[1736536284343,0.0304791,3279.7,3279.1,0.7709]
[1736536284852,0.0304791,3279.7,3279.1,1.152969]
[1736536285012,0.0304791,3280.0,3279.1,3.82043]
[1736536285212,3.0304791,3280.0,3279.1,3.82043]
[1736536285653,0.0304791,3280.0,3279.2,3.05701]
[1736536285842,3.0792091,3280.1,3279.2,0.0075]
[1736536286152,3.04834,3280.5,3279.5,0.8268]
[1736536286315,0.0304791,3280.4,3279.6,0.387613]
[1736536286655,0.0304791,3280.4,3279.6,1.00191724]
[1736536286988,0.0304791,3280.7,3279.9,0.0075]
[1736536287266,3.04776,3281.1,3280.2,0.8091]
[1736536287552,3.08892658,3281.3,3280.2,0.8091]
[1736536287553,0.0075,3281.4,3280.3,0.03798103]
[1736536288048,3.04745,3281.5,3280.5,0.0075]
[1736536288215,0.0304791,3281.4,3280.5,0.0075]
[1736536288614,3.0779891,3281.4,3280.5,0.0075]
[1736536290929,3.04757,3281.3,3280.5,0.0075]
[1736536291156,3.04757,3281.3,3280.5,0.394107]
[1736536291669,3.0778891,3281.5,3280.5,0.394107]
[1736536292455,3.04752,3281.4,3280.7,0.61761285]
[1736536292654,0.0304791,3281.3,3280.7,0.61761285]
[1736536293555,3.04752,3281.4,3280.7,0.61761285]
[1736536293752,0.0304791,3281.5,3280.8,0.7759]
[1736536294366,3.0475,3281.4,3280.8,0.7759]
[1736536294669,0.0304791,3281.3,3280.8,0.7759]
[1736536295028,0.0075,3281.2,3280.4,0.7759]
[1736536295225,3.11940568,3281.3,3280.4,0.7759]
[1736536295226,0.0304791,3281.3,3280.5,0.63301883]
[1736536295429,3.0,3281.4,3280.5,4.12705771]
[1736536295654,6.13613658,3281.7,3280.6,0.8276]
[1736536295852,6.13613658,3281.7,3280.5,1.07874771]
[1736536295853,0.0304791,3281.6,3280.7,0.0075]
[1736536296026,0.0304791,3281.6,3280.8,0.8276]
[1736536296468,0.0304791,3281.6,3280.9,0.03047522]
[1736536296670,3.0775891,3281.8,3280.9,0.39135252]
[1736536297166,3.0775891,3281.8,3281.0,0.03047447]
[1736536297365,3.0775891,3281.8,3280.9,0.39135252]
[1736536297574,3.0775891,3281.8,3281.0,0.03047448]
[1736536297770,0.0304791,3281.8,3280.8,0.8276]
[1736536297930,3.04737,3281.6,3280.8,0.8276]
[1736536298289,3.05521,3281.2,3280.5,0.8277]
[1736536298492,3.04809,3280.8,3280.5,0.8277]
[1736536298663,3.0786191,3280.7,3280.5,0.8277]
[1736536298994,0.0075,3280.4,3280.0,0.60500457]
[1736536299152,0.0304791,3280.4,3279.9,0.7586]
[1736536299357,0.0304791,3280.7,3280.0,0.03048795]
[1736536299558,0.0075,3280.6,3279.9,0.7586]
[1736536299767,3.0486,3280.2,3279.9,0.7586]
[1736536299995,3.0792191,3280.1,3279.6,0.7586]
[1736536300511,3.04878,3280.0,3279.6,0.7586]
[1736536300712,0.0304791,3279.9,3279.6,0.7586]
[1736536300996,0.0304791,3279.9,3279.3,0.8226]
[1736536301885,3.0,3280.0,3279.4,0.03049236]
[1736536302198,3.0304791,3280.0,3279.4,0.03049236]
[1736536302491,3.04831,3280.6,3279.7,0.796]
[1736536302791,3.04852,3280.3,3279.7,0.796]
[1736536303289,3.0787991,3280.5,3279.7,0.796]
[1736536304485,3.04861,3280.2,3279.7,0.796]
[1736536304695,0.0304791,3280.1,3279.7,0.796]
[1736536304896,0.0304791,3280.3,3279.7,0.796]
[1736536305302,3.0,3280.2,3279.7,0.796]
[1736536305616,0.0304791,3280.1,3279.7,0.796]
[1736536306016,3.0,3280.2,3279.7,0.796]
[1736536306215,3.08892658,3280.9,3279.8,0.03048837]
[1736536306419,3.04817,3280.7,3279.7,0.796]
[1736536306589,3.0787091,3280.6,3279.7,0.796]
[1736536306794,3.04838,3280.5,3279.7,0.796]
[1736536307381,0.0304791,3280.4,3279.7,0.796]
[1736536307617,6.13689658,3280.9,3279.7,0.796]
[1736536307618,3.04823,3280.6,3279.7,0.796]
[1736536307916,3.0486,3280.2,3279.5,1.4225934]
[1736536308115,0.0304791,3280.1,3279.5,1.4225934]
[1736536309220,3.0787091,3280.6,3279.6,0.0075]
[1736536309398,3.0787091,3280.6,3279.7,0.8276]
[1736536309631,3.04844,3280.4,3279.7,0.8276]
[1736536310714,3.04844,3280.4,3279.7,1.27611334]
[1736536310914,3.04844,3280.4,3279.7,0.8276]
[1736536312439,0.0304791,3280.3,3279.7,0.8276]
[1736536312636,0.0379791,3280.7,3279.7,0.8276]
[1736536312849,3.04857,3280.3,3279.7,0.8276]
[1736536313045,0.0304791,3280.2,3279.7,0.8276]
[1736536313250,3.0790791,3280.2,3279.7,0.8276]
[1736536314041,0.0304791,3280.2,3279.7,0.8276]
[1736536314230,3.04844,3280.4,3279.7,0.8276]
[1736536314427,3.04859,3280.2,3279.7,0.8276]
[1736536314640,3.04894,3279.9,3279.7,0.8276]
[1736536314865,3.0791891,3280.1,3279.7,0.8276]
[1736536315179,0.0304791,3280.1,3279.7,0.8276]
[1736536315455,3.0488,3280.0,3279.7,0.8276]
[1736536315752,0.0304791,3279.9,3279.7,0.8276]
[1736536316813,0.0304791,3279.9,3279.3,0.7518]
[1736536317050,3.04914,3279.7,3279.3,0.7518]
[1736536317281,0.0304791,3279.6,3279.3,0.7518]
[1736536318274,3.0796191,3279.7,3279.3,0.7518]
[1736536318942,3.04916,3279.6,3279.3,0.7518]
[1736536319142,0.0304791,3279.5,3279.3,0.7518]
[1736536319771,0.0304791,3279.5,3279.1,1.38942833]
[1736536320541,9.35863891,3280.0,3279.1,1.38942833]
[1736536320542,0.0075,3279.7,3279.1,1.38942833]
[1736536320738,0.0379791,3279.7,3279.1,1.38942833]
[1736536321151,3.04916,3279.6,3279.1,1.38942833]
[1736536321374,0.0304791,3279.5,3278.4,0.7818]
[1736536321582,3.04982,3278.9,3278.4,0.7818]
[1736536321783,0.0304791,3278.8,3278.4,0.7818]
[1736536321942,0.0304791,3279.0,3278.4,0.7818]
[1736536322562,3.04955,3279.2,3278.4,0.7818]
[1736536322777,0.0304791,3279.1,3278.4,0.7818]
[1736536322978,0.0304791,3279.3,3278.7,0.62322167]
[1736536323142,3.0,3279.6,3278.8,0.81229614]
[1736536323346,5.38,3279.8,3278.9,3.04979]
[1736536323558,5.4104791,3279.8,3278.9,3.04979]
[1736536323771,5.4104791,3279.8,3278.8,0.7818]
[1736536323772,5.4104791,3279.8,3279.0,0.383159]
[1736536324009,5.4104791,3279.8,3278.8,0.7818]
[1736536324349,0.0304791,3279.8,3278.9,0.03799401]
[1736536324547,3.04854,3280.3,3279.3,0.0075]
[1736536324767,0.0304791,3280.3,3279.5,0.7745]
[1736536325026,3.04799,3280.9,3280.1,0.7673]
[1736536325236,0.7729,3281.1,3280.1,0.7673]
[1736536325237,3.0785391,3280.8,3280.1,0.7673]
[1736536325525,3.0785191,3280.8,3280.1,0.7673]
[1736536325886,6.04813,3280.7,3280.1,0.7673]
[1736536326090,0.0304791,3280.6,3280.1,0.7673]
[1736536326311,0.0075,3280.6,3280.1,0.7673]
[1736536326507,3.04847,3280.4,3279.8,0.7541]
[1736536326707,0.0304791,3280.3,3279.8,0.7541]
[1736536327130,3.04862,3280.2,3279.8,0.7541]
[1736536327278,0.0304791,3280.1,3279.8,0.7541]
[1736536327476,0.0304791,3280.4,3279.8,0.7541]
[1736536327909,3.0789391,3280.4,3279.8,0.7541]
[1736536328114,3.0487,3280.1,3279.8,0.7541]
[1736536328459,0.0304791,3280.0,3279.8,0.7541]
[1736536328792,3.0790691,3280.2,3279.8,0.7541]
[1736536328997,3.04872,3280.1,3279.8,0.7541]
[1736536329215,0.0304791,3280.0,3279.8,0.7541]
[1736536329810,3.04896,3279.8,3277.8,3.30076]
[1736536330010,3.04896,3279.8,3279.4,0.7809]
[1736536330011,0.0304791,3279.7,3279.4,0.7809]
[1736536330370,3.0791691,3280.1,3279.5,0.60079365]
[1736536330576,3.08757648,3280.3,3279.5,0.60079365]
[1736536330577,0.0304791,3280.0,3279.5,0.60079365]
[1736536330782,3.04854,3280.3,3279.5,0.60079365]
[1736536330783,3.0304791,3280.2,3279.5,0.60079365]
[1736536331435,6.0790691,3280.2,3279.5,0.60079365]
[1736536331659,6.04859,3280.2,3279.5,0.60079365]
[1736536331960,0.0304791,3280.1,3279.5,1.04390402]
[1736536332116,0.0304791,3280.1,3279.5,0.60079365]
[1736536333222,3.04861,3280.2,3279.5,0.60079365]
[1736536333416,0.0304791,3280.1,3279.5,0.60079365]
[1736536334176,3.0791691,3280.1,3279.5,0.60079365]
[1736536334359,3.04898,3279.8,3279.4,0.7809]
[1736536334681,0.0304791,3279.7,3279.4,0.7809]
[1736536334974,0.0075,3280.0,3279.4,0.7809]
[1736536334975,3.0867791,3280.0,3279.4,0.7809]
[1736536335492,0.0304791,3280.0,3279.4,0.7809]
[1736536335778,6.1671,3280.7,3279.7,3.04897]
[1736536335916,0.0304791,3280.6,3279.8,3.07943559]
[1736536336150,0.0304791,3280.6,3279.9,0.30869356]
[1736536336151,3.0787191,3280.6,3279.9,0.30869356]
[1736536336450,0.0304791,3280.6,3279.7,3.05647]
[1736536336909,3.04817,3280.7,3279.7,3.05647]
[1736536337056,3.0787791,3280.6,3279.7,0.0075]
[1736536337254,0.0075,3280.5,3279.6,0.8156]
[1736536337696,0.0379791,3280.5,3279.6,0.8156]
[1736536337898,0.0304791,3280.5,3279.6,0.8156]
[1736536338054,3.04804,3280.8,3279.8,3.04895]
[1736536338252,0.0304791,3280.8,3280.1,0.817]
[1736536338915,0.38867677,3281.0,3280.4,0.60031382]
[1736536339072,0.38867677,3281.0,3280.5,0.03047994]
[1736536339251,0.38867677,3281.0,3280.4,0.60031382]
[1736536340052,0.38867677,3281.0,3280.4,0.9652022]
[1736536340251,0.38867677,3281.0,3280.1,0.817]
[1736536340252,0.0304791,3280.9,3280.1,0.817]
[1736536340466,3.04824,3280.6,3280.1,0.817]
[1736536340674,3.04824,3280.6,3279.3,0.7834]
[1736536340675,3.04894,3279.9,3279.3,0.7834]
[1736536340912,0.0304791,3279.8,3279.3,0.7834]
[1736536341111,0.0075,3280.0,3279.3,0.7834]
[1736536341411,3.0488,3280.0,3279.3,1.166701]
[1736536341561,3.0794191,3279.9,3279.3,0.7834]
[1736536342463,3.0793491,3279.9,3279.7,0.60590147]
[1736536343601,0.0304791,3279.9,3279.7,0.60590147]
[1736536343777,3.7916,3280.2,3279.7,0.60590147]
[1736536343778,3.04896,3279.8,3279.7,0.60590147]
[1736536344456,0.0304791,3280.1,3279.7,0.60590147]
[1736536344457,3.04882,3280.0,3279.7,0.60590147]
[1736536344658,0.0304791,3279.9,3279.7,0.60590147]
[1736536346360,0.0304791,3280.1,3279.7,0.60590147]
[1736536346725,0.0304791,3280.3,3279.7,0.60590147]
[1736536347411,3.0790591,3280.3,3279.7,0.60590147]
[1736536347617,0.0075,3280.2,3279.3,0.7834]
[1736536347759,5.59755635,3279.7,3278.9,0.786]
[1736536347957,0.0304791,3279.6,3278.9,0.786]
[1736536348789,0.0304791,3279.8,3279.0,3.04968]
[1736536348958,0.0304791,3280.0,3279.1,0.03049234]
[1736536349361,0.0304791,3280.0,3279.2,0.7867]
[1736536349558,0.8048,3280.4,3279.3,0.03049062]
[1736536349780,0.0304791,3280.1,3279.6,0.7867]
[1736536350179,0.0304791,3280.3,3279.6,0.7867]
[1736536350514,0.0304791,3280.3,3279.6,3.83584]
[1736536350715,0.0304791,3280.1,3279.7,0.41173288]
[1736536350865,0.0304791,3280.1,3279.6,0.7867]
[1736536353006,0.0304791,3280.2,3279.6,0.7867]
[1736536353800,3.04908,3279.7,3279.3,0.7928]
[1736536353980,0.0304791,3279.6,3279.2,0.61017569]
[1736536354176,3.0796391,3279.6,3279.1,0.7928]
[1736536354380,3.0075,3279.9,3278.8,0.7928]
[1736536354381,2.54947824,3279.3,3278.8,0.7928]
[1736536354596,3.05014,3278.6,3278.2,0.7928]
[1736536354797,0.0304791,3278.5,3278.1,2.35067582]
[1736536355239,0.0304791,3278.6,3278.1,2.35067582]
[1736536355546,0.0304791,3279.1,3278.4,3.05022]
[1736536355728,0.0304791,3279.2,3278.5,0.03049867]
[1736536356150,0.0304791,3279.3,3278.5,3.08063867]
[1736536356463,0.0304791,3279.3,3278.3,0.7756]
[1736536356625,0.0304791,3279.3,3278.4,3.05018]
[1736536356824,2.57995734,3279.4,3278.6,3.05007]
[1736536357160,2.57995734,3279.4,3278.5,0.382578]
[1736536357310,5.62931734,3279.4,3278.5,3.432708]
[1736536357648,0.0075,3279.5,3278.6,3.08053719]
[1736536357827,0.0379791,3279.5,3278.6,3.08053719]
[1736536358008,3.0379791,3279.5,3278.6,3.42684871]
[1736536358508,3.0872191,3279.5,3278.6,3.42684871]
[1736536358726,3.0872191,3279.5,3278.7,0.60664739]
[1736536359870,2.54947824,3279.1,3278.3,0.7756]
[1736536360161,2.54947824,3279.4,3278.5,0.62369045]
[1736536360360,0.0304791,3279.3,3278.5,0.62369045]
[1736536361472,3.04944,3279.3,3278.5,0.62369045]
[1736536361632,2.52995734,3279.4,3278.5,0.62369045]
[1736536361833,2.52995734,3279.4,3278.5,3.67386045]
[1736536362058,2.52995734,3279.4,3278.6,0.36738605]
[1736536362764,2.52995734,3279.4,3278.6,3.41743605]
[1736536362973,5.57930734,3279.4,3278.6,0.36738605]
[1736536363559,3.04945,3279.3,3278.6,0.36738605]
[1736536363755,2.52995734,3279.4,3278.5,0.62369045]
[1736536363756,3.04954,3279.2,3278.5,0.62369045]
[1736536365847,0.0075,3278.7,3278.1,2.35067582]
[1736536366045,3.0,3279.0,3278.2,0.60781121]
[1736536366243,3.81814,3279.3,3278.4,0.811]
[1736536366448,2.54947824,3279.4,3278.5,0.0305]
[1736536366644,3.0,3279.3,3278.5,0.0305]
[1736536367072,2.54947824,3279.4,3278.4,0.811]
[1736536367274,3.81787,3279.6,3278.7,3.04995]
[1736536367574,3.81787,3279.6,3278.7,3.35799473]
[1736536367735,3.05683,3279.5,3278.7,0.30804473]
[1736536367938,2.54947824,3279.4,3278.5,3.05016]
[1736536368135,0.7944,3279.3,3278.5,3.05016]
[1736536368350,2.54947824,3279.4,3278.5,3.05016]
[1736536369273,2.54947824,3279.4,3278.6,3.89794722]
[1736536369653,5.59883824,3279.4,3278.6,0.84789722]
[1736536369934,5.59883824,3279.4,3278.7,0.38980572]
[1736536370106,5.59883824,3279.4,3278.9,0.60373625]
[1736536370243,0.0075,3279.5,3278.9,0.60373625]
[1736536370448,3.05675,3279.5,3278.9,0.60373625]
[1736536371758,3.05675,3279.5,3278.7,0.38980572]
[1736536371954,3.04937,3279.4,3278.7,0.38980572]
[1736536372256,5.59884824,3279.4,3278.7,0.38980572]
[1736536372663,2.54947824,3279.4,3278.7,0.38980572]
[1736536372869,3.05669,3279.6,3278.7,0.6125303]
[1736536373450,0.0075,3279.6,3278.7,0.6125303]
[1736536373674,3.04928,3279.5,3278.7,0.6125303]
[1736536377908,3.04946,3279.3,3278.7,0.6125303]
[1736536378084,0.015,3279.0,3278.2,0.7998]
[1736536378286,5.59937824,3278.8,3278.2,0.7998]
[1736536378980,3.0499,3278.8,3278.2,0.7998]
[1736536379199,3.0499,3278.8,3278.3,0.60905117]
[1736536379709,3.05721,3279.0,3278.3,0.60905117]
[1736536380121,2.54947824,3279.1,3278.3,0.98500387]
[1736536380279,5.59883824,3279.4,3278.6,3.05007]
[1736536380480,3.85457,3279.6,3278.7,0.797]
[1736536380685,5.59881824,3279.4,3278.7,0.797]
[1736536381342,2.54947824,3279.1,3278.7,0.797]
[1736536381946,3.04952,3279.2,3278.7,0.797]
[1736536382440,3.0,3279.5,3278.7,0.797]
[1736536382799,6.04926,3279.5,3278.7,0.797]
[1736536383218,2.54947824,3279.7,3278.8,0.03049725]
[1736536383437,3.04916,3279.6,3278.8,3.04984]
[1736536383640,3.04916,3279.6,3278.9,0.384684]
[1736536383937,2.54947824,3279.7,3278.9,0.41517892]
[1736536384116,2.54947824,3280.0,3279.0,1.38554543]
[1736536384302,3.0,3279.9,3279.0,4.43523543]
[1736536384499,3.04908,3279.7,3279.0,1.38554543]
[1736536384746,3.04918,3279.6,3279.0,0.7597]
[1736536385996,3.0,3279.9,3279.0,0.7597]
[1736536386209,0.0075,3280.0,3279.1,0.03049574]
[1736536386407,0.0075,3280.0,3279.2,0.7773]
[1736536386603,0.0075,3280.0,3279.3,0.38573357]
[1736536387265,5.59797824,3280.3,3279.4,0.03049277]
[1736536387468,5.59797824,3280.3,3279.5,0.786]
[1736536388664,0.0075,3280.0,3279.5,1.40422178]
[1736536388961,2.55697824,3280.0,3279.5,0.61822178]
[1736536389320,3.0,3280.2,3279.5,0.61822178]
[1736536389519,6.04867,3280.2,3279.5,0.61822178]
[1736536389829,3.04874,3280.1,3279.5,0.61822178]
[1736536390034,3.04894,3279.9,3279.5,0.61822178]
[1736536391713,3.04897,3279.8,3279.5,0.61822178]
[1736536392137,0.0075,3279.9,3279.5,0.61822178]
[1736536393390,3.0564,3279.9,3279.5,0.61822178]
[1736536393604,3.04897,3279.8,3279.5,0.61822178]
[1736536393753,5.55697824,3279.7,3279.0,0.25]
[1736536394122,3.05006,3278.7,3278.5,0.8139]
[1736536394251,0.0075,3278.5,3277.9,0.8139]
[1736536394455,5.59993824,3278.2,3277.9,0.8139]
[1736536394762,3.05031,3278.4,3277.9,0.8139]
[1736536395489,2.54947824,3278.5,3277.9,0.8139]
[1736536395854,5.59971824,3278.5,3277.9,0.8139]
[1736536396393,2.54947824,3278.5,3277.9,0.8139]
[1736536396583,3.0,3278.7,3277.9,0.8139]
[1736536396777,3.04984,3278.9,3278.0,3.08110376]
[1736536396980,0.0075,3279.0,3278.1,0.38950038]
[1736536397195,3.0075,3279.0,3278.1,0.38950038]
[1736536397393,3.0498,3278.9,3278.1,0.38950038]
[1736536397594,2.54947824,3278.8,3277.9,0.8139]
[1736536397755,3.0,3278.7,3277.9,0.8139]
[1736536398259,3.0,3278.7,3277.9,3.86462]
[1736536398461,2.55697824,3279.1,3278.2,3.05041]
[1736536398683,5.38,3279.8,3278.4,0.8169]
[1736536398684,2.54947824,3279.4,3278.4,0.8169]
[1736536398996,2.54947824,3279.4,3278.5,3.08064951]
[1736536399194,2.54947824,3279.7,3278.8,0.8094]
[1736536399494,3.0,3279.5,3278.8,0.8094]
[1736536399661,3.0,3279.6,3278.8,0.8094]
[1736536399859,2.54947824,3279.4,3278.8,0.8094]
[1736536400402,2.54947824,3279.4,3278.9,0.62069491]
[1736536400985,5.59881824,3279.4,3278.8,0.8094]
[1736536401667,5.54947824,3279.7,3278.8,0.8094]
[1736536401978,3.04917,3279.6,3278.8,0.8094]
[1736536402478,0.0075,3279.5,3278.8,1.79899623]
[1736536403060,3.04917,3279.6,3278.8,1.79899623]
[1736536403274,3.0,3279.7,3278.9,3.08025507]
[1736536403481,3.0,3279.8,3279.0,3.0497]
[1736536404381,3.0,3279.8,3279.1,0.03049367]
[1736536404563,3.0,3279.9,3279.3,0.7975]
[1736536405605,3.04897,3279.8,3279.3,0.7975]
[1736536406294,2.54947824,3280.0,3279.3,0.7975]
[1736536407038,5.38,3280.5,3279.5,0.7975]
[1736536407191,0.8313,3280.7,3279.7,0.7975]
[1736536407192,3.04819,3280.7,3279.7,0.7975]
[1736536407396,3.04819,3280.7,3279.8,0.4181971]
[1736536407604,3.04819,3280.7,3279.7,3.84648]
[1736536407812,0.0075,3280.4,3279.7,0.7975]
[1736536408031,0.0075,3280.1,3279.7,0.7975]
[1736536408494,3.0,3280.5,3279.7,0.7975]
[1736536408495,5.54947824,3280.5,3279.7,0.7975]
[1736536409282,3.04879,3280.0,3279.4,1.36934137]
[1736536409483,6.40570824,3280.2,3279.4,1.36934137]
[1736536409712,5.60560824,3280.2,3279.4,1.36934137]
[1736536410622,3.05613,3280.2,3279.4,1.36934137]
[1736536411595,6.34957824,3280.5,3279.4,1.36934137]
[1736536411821,3.04844,3280.4,3279.4,4.41867137]
[1736536411983,0.0075,3280.4,3279.4,4.41867137]
[1736536412184,3.0,3280.2,3279.4,4.41867137]
[1736536412414,2.54947824,3280.2,3279.4,1.36934137]
[1736536412632,3.04868,3280.1,3279.4,1.36934137]
[1736536414383,0.0075,3280.2,3279.4,1.81122551]
[1736536414616,3.0075,3280.2,3279.4,1.81122551]
[1736536414816,3.0,3280.2,3279.4,1.81122551]
[1736536415017,3.0,3280.2,3279.4,1.36934137]
[1736536415320,3.0,3280.4,3279.4,1.36934137]
[1736536415321,3.0,3280.4,3279.5,0.7812]
[1736536415530,6.04849,3280.4,3279.5,0.7812]
[1736536417295,6.04849,3280.4,3279.6,0.03048844]
[1736536417790,3.0075,3280.5,3279.8,0.8084]
[1736536418336,3.0,3280.7,3279.8,4.24612184]
[1736536419013,0.0075,3280.6,3279.8,1.19719184]
[1736536419232,0.0075,3280.6,3279.9,0.59828798]
[1736536419430,0.0075,3280.6,3279.2,3.057]
[1736536419431,3.0488,3280.0,3279.1,0.7728]
[1736536419629,3.0488,3280.0,3279.1,4.07136]
[1736536420471,3.0489,3279.9,3279.5,0.61568895]
[1736536422007,6.05622,3280.1,3279.6,0.7841]
[1736536422435,6.04872,3280.1,3279.6,0.7841]
[1736536423411,3.0,3280.4,3279.6,0.7841]
[1736536423743,3.04851,3280.3,3279.6,0.7841]
[1736536424750,0.0075,3280.1,3279.6,0.7841]
[1736536424933,3.0075,3280.1,3279.6,0.7841]
[1736536425151,6.05627,3280.1,3279.6,0.7841]
[1736536425510,3.0488,3280.0,3279.6,0.7841]
[1736536426936,3.0,3280.4,3279.6,0.7841]
[1736536427143,3.0,3280.2,3279.6,0.7841]
[1736536427345,3.04834,3280.5,3279.6,0.81459013]
[1736536427551,2.54947824,3280.5,3279.6,0.7841]
[1736536427870,3.0,3280.4,3279.6,1.2290039]
[1736536428253,6.04847,3280.4,3279.6,1.2290039]
[1736536428763,3.04851,3280.3,3279.6,1.2290039]
[1736536428960,3.04851,3280.3,3279.6,0.7841]
[1736536429134,3.0,3280.4,3279.6,0.7841]
[1736536429135,0.0075,3280.2,3279.6,0.7841]
[1736536429463,2.55697824,3280.2,3279.6,0.7841]
[1736536429622,3.04885,3280.0,3279.6,0.7841]